bitfinex-derivatives/quotes_BNBF0:USTF0_20250115
["timestamp","ask_amount","ask_price","bid_price","bid_amount"]
[1736950079467,1.06084364,700.75,699.28,0.28600846]
[1736950080467,1.06084364,700.67,699.28,0.28600846]
[1736950080665,0.26241758,700.66,699.28,0.28600846]
[1736950080867,1.06084364,700.67,699.28,0.28600846]
[1736950081364,1.06084364,700.57,699.28,0.28600846]
[1736950082467,0.28536369,700.86,699.28,0.28600846]
[1736950084878,0.28536369,700.86,699.32,1.02953899]
[1736950085974,0.28536369,700.86,699.31,1.02953899]
[1736950086870,0.28536369,700.86,699.28,0.28600846]
[1736950089272,0.28536369,700.86,699.29,2.4599885]
[1736950089470,0.28536369,700.86,699.3,2.4599885]
[1736950089670,0.28536369,700.86,699.31,2.4599885]
[1736950089874,0.28536369,700.86,699.29,2.69506945]
[1736950090473,0.28536369,700.86,699.28,0.28600846]
[1736950090772,0.28536369,700.86,699.29,1.60372829]
[1736950090972,0.28536369,700.86,699.41,1.02953899]
[1736950091208,0.28536369,700.86,699.43,0.28594712]
[1736950091965,1.06084364,701.39,699.43,0.28594712]
[1736950092165,0.28515212,701.38,699.43,0.28594712]
[1736950092566,0.54738497,701.38,699.43,0.28594712]
[1736950092767,0.54738497,701.38,699.44,1.60416802]
[1736950092970,0.26223285,701.37,699.44,1.60416802]
[1736950093175,0.26223285,701.37,699.45,3.55227408]
[1736950093476,0.26223285,701.37,699.45,2.69608179]
[1736950093673,0.28515212,701.38,699.46,1.60371532]
[1736950093878,0.26219671,701.37,699.47,1.02953899]
[1736950094074,0.28515212,701.38,699.47,1.02953899]
[1736950094275,0.26220149,701.37,699.47,1.02953899]
[1736950094673,0.26220149,701.37,699.43,0.28594712]
[1736950094976,0.26220149,701.37,699.44,1.60369122]
[1736950095179,0.26220149,701.37,699.44,4.29921211]
[1736950095377,0.26220149,701.37,699.45,1.60369122]
[1736950095973,0.28515212,701.38,699.44,2.69552089]
[1736950096773,0.28515212,701.38,699.43,0.28594712]
[1736950098279,0.26220939,701.37,699.43,0.28594712]
[1736950098484,0.26220939,701.37,699.44,1.60318227]
[1736950098784,0.26220939,701.37,699.43,0.28594712]
[1736950101786,0.26224617,701.36,699.43,0.28594712]
[1736950101985,0.26224617,701.37,699.43,0.28594712]
[1736950102187,0.26224617,701.36,699.43,0.28594712]
[1736950102385,0.26224617,701.35,699.43,0.28594712]
[1736950102585,0.26224617,701.37,699.43,0.28594712]
[1736950102782,0.26218244,701.36,699.44,2.45839019]
[1736950102987,0.26218244,701.37,699.45,2.45839019]
[1736950103184,0.26216514,701.36,699.46,2.45839019]
[1736950103484,0.26216514,701.35,699.47,2.45839019]
[1736950103787,0.26216514,701.34,699.48,2.45839019]
[1736950103986,0.26216514,701.37,699.49,2.45839019]
[1736950104186,0.26215988,701.36,699.5,2.45839019]
[1736950104387,0.26215988,701.37,699.51,2.45839019]
[1736950104583,0.28515212,701.38,699.46,2.69267002]
[1736950104884,0.28515212,701.38,699.48,0.28592668]
[1736950106697,0.2622154,701.37,699.48,0.28592668]
[1736950107383,0.26221844,701.36,699.48,0.28592668]
[1736950107598,0.26221844,701.37,699.48,0.28592668]
[1736950107790,0.26221844,701.36,699.48,0.28592668]
[1736950108091,0.28515212,701.38,699.48,0.28592668]
[1736950108092,0.26221844,701.35,699.48,0.28592668]
[1736950108293,0.26221844,701.34,699.48,0.28592668]
[1736950108485,0.26221844,701.33,699.48,0.28592668]
[1736950108685,0.26221844,701.32,699.48,0.28592668]
[1736950108885,0.28515212,701.38,699.48,0.28592668]
[1736950109097,0.26220998,701.31,699.48,0.28592668]
[1736950109391,0.26220998,701.3,699.48,0.28592668]
[1736950109586,0.28515212,701.38,699.48,0.28592668]
[1736950110187,0.26219093,701.37,699.48,0.28592668]
[1736950112593,0.26219688,701.36,699.48,0.28592668]
[1736950112793,0.28516432,701.35,699.48,0.28592668]
[1736950113190,0.26222802,701.34,699.48,0.28592668]
[1736950113389,0.26222802,701.33,699.48,0.28592668]
[1736950113589,0.26222802,701.32,699.48,0.28592668]
[1736950113896,0.26223411,701.31,699.48,0.28592668]
[1736950114195,0.28516432,701.35,699.48,0.28592668]
[1736950116396,0.26222073,701.34,699.48,0.28592668]
[1736950117892,0.28517245,701.33,699.48,0.28592668]
[1736950118096,0.26222073,701.32,699.48,0.28592668]
[1736950118301,1.32306437,701.32,699.48,0.28592668]
[1736950118498,1.06084364,701.32,699.48,0.28592668]
[1736950119107,0.28517245,701.33,699.48,0.28592668]
[1736950120602,0.26224879,701.32,699.48,0.28592668]
[1736950121405,0.26227272,701.31,699.48,0.28592668]
[1736950121609,0.26227272,701.3,699.48,0.28592668]
[1736950121802,0.26227272,701.29,699.48,0.28592668]
[1736950122003,1.06084364,701.13,699.48,0.28592668]
[1736950122905,1.06084364,701.15,699.48,0.28592668]
[1736950123902,1.06084364,701.19,699.48,0.28592668]
[1736950124505,0.26225386,701.18,699.48,0.28592668]
[1736950124998,1.06084364,701.25,699.48,0.28592668]
[1736950124999,0.26225386,701.17,699.48,0.28592668]
[1736950125199,0.26225386,701.16,699.48,0.28592668]
[1736950125399,0.26225386,701.24,699.48,0.28592668]
[1736950125606,1.06084364,701.12,699.64,1.02953899]
[1736950125806,0.26225386,701.11,699.64,1.02953899]
[1736950126705,1.06084364,701.12,699.65,0.28585721]
[1736950127503,1.06084364,701.18,699.65,0.28585721]
[1736950128504,0.28517245,701.33,699.65,0.28585721]
[1736950130605,0.26222445,701.32,699.65,0.28585721]
[1736950131535,1.06084364,701.28,699.65,0.28585721]
[1736950132110,1.06084364,701.32,699.65,0.28585721]
[1736950132314,0.26224093,701.31,699.65,0.28585721]
[1736950132511,1.06084364,701.32,699.65,0.28585721]
[1736950133010,1.06084364,701.31,699.65,0.28585721]
[1736950133408,0.54742218,701.3,699.65,0.28585721]
[1736950133608,0.26223753,701.29,699.65,0.28585721]
[1736950134011,1.06084364,701.28,699.65,0.28585721]
[1736950134625,0.26221337,701.27,699.65,0.28585721]
[1736950135207,0.28518465,701.3,699.65,0.28585721]
[1736950135409,0.26220625,701.29,699.65,0.28585721]
[1736950136514,0.26220625,701.29,699.73,1.02953899]
[1736950136911,0.28518465,701.3,699.73,1.02953899]
[1736950137413,0.28518465,701.3,699.66,1.02953899]
[1736950138208,0.28518465,701.3,699.67,1.02953899]
[1736950138812,0.28518465,701.3,699.69,0.28584087]
[1736950142112,0.28518465,701.3,699.7,5.17304794]
[1736950142318,0.28518465,701.3,699.7,2.70670335]
[1736950143314,0.28518465,701.3,699.7,3.73624234]
[1736950143511,0.28518465,701.3,699.7,1.02953899]
[1736950144116,0.28518465,701.3,699.69,0.28584087]
[1736950148319,0.26223345,701.29,699.69,0.28584087]
[1736950148519,0.28518465,701.3,699.69,0.28584087]
[1736950148722,0.26225774,701.29,699.69,0.28584087]
[1736950149926,0.28519279,701.28,699.69,0.28584087]
[1736950150225,1.06084364,701.2,699.69,0.28584087]
[1736950150526,0.26225774,701.19,699.69,0.28584087]
[1736950151229,1.32310138,701.19,699.69,0.28584087]
[1736950151820,0.26225774,701.18,699.69,0.28584087]
[1736950152521,0.26225774,701.17,699.69,0.28584087]
[1736950152725,0.26225774,701.16,699.69,0.28584087]
[1736950153025,1.06084364,701.24,699.69,0.28584087]
[1736950153229,1.06084364,701.22,699.69,0.28584087]
[1736950153436,0.26227598,701.21,699.69,0.28584087]
[1736950153826,1.06084364,701.22,699.69,0.28584087]
[1736950154028,0.2622879,701.21,699.69,0.28584087]
[1736950154626,1.06084364,701.22,699.69,0.28584087]
[1736950154822,0.26229219,701.21,699.69,0.28584087]
[1736950155425,0.26229219,701.2,699.69,0.28584087]
[1736950155730,0.26229219,701.19,699.69,0.28584087]
[1736950155927,0.26229219,701.18,699.69,0.28584087]
[1736950156127,1.06084364,701.15,699.69,0.28584087]
[1736950156328,0.26229219,701.14,699.69,0.28584087]
[1736950156823,0.26229095,701.13,699.69,0.28584087]
[1736950157024,0.26229095,701.12,699.69,0.28584087]
[1736950157230,0.26229095,701.11,699.69,0.28584087]
[1736950157428,0.26229095,701.1,699.69,0.28584087]
[1736950157728,0.26229095,701.09,699.69,0.28584087]
[1736950157930,1.06084364,701.13,699.69,0.28584087]
[1736950157931,0.26229095,701.08,699.69,0.28584087]
[1736950158129,0.26229095,701.07,699.69,0.28584087]
[1736950158428,0.26229095,701.06,699.69,0.28584087]
[1736950158629,1.06084364,701.1,699.69,0.28584087]
[1736950158630,0.26229095,701.05,699.69,0.28584087]
[1736950158831,1.06084364,701.1,699.69,0.28584087]
[1736950159035,0.54757491,701.09,699.69,0.28584087]
[1736950159225,0.28527007,701.09,699.69,0.28584087]
[1736950159932,0.26234824,701.08,699.69,0.28584087]
[1736950160330,0.28527007,701.09,699.69,0.28584087]
[1736950163435,0.26232283,701.08,699.69,0.28584087]
[1736950164036,0.26232029,701.07,699.69,0.28584087]
[1736950164235,0.26232029,701.06,699.69,0.28584087]
[1736950164436,0.26232029,701.05,699.69,0.28584087]
[1736950164643,0.28527007,701.09,699.69,0.28584087]
[1736950164837,0.26231536,701.08,699.69,0.28584087]
[1736950165331,0.26231737,701.07,699.69,0.28584087]
[1736950165537,0.28527007,701.09,699.69,0.28584087]
[1736950165834,0.26232124,701.08,699.69,0.28584087]
[1736950166236,0.28527007,701.09,699.69,0.28584087]
[1736950166433,0.26231857,701.08,699.69,0.28584087]
[1736950167531,0.28527007,701.09,699.69,0.28584087]
[1736950167738,0.26232419,701.08,699.69,0.28584087]
[1736950168236,0.28527007,701.09,699.69,0.28584087]
[1736950168436,0.26234577,701.08,699.69,0.28584087]
[1736950169036,0.28527007,701.09,699.69,0.28584087]
[1736950169439,0.28527007,701.09,699.04,1.02953899]
[1736950169639,0.28527007,701.09,699.06,0.28609847]
[1736950170141,0.26241639,701.08,699.06,0.28609847]
[1736950170341,0.28527007,701.09,699.06,0.28609847]
[1736950170542,0.26241137,701.07,699.06,0.28609847]
[1736950170749,0.26241137,701.06,699.06,0.28609847]
[1736950172141,0.28527007,701.09,699.06,0.28609847]
[1736950181949,0.28527007,701.09,699.12,1.02953899]
[1736950182346,0.28527007,701.09,699.14,0.28606573]
[1736950183053,0.28527007,701.09,699.18,1.02953899]
[1736950183252,0.28527007,701.09,699.2,0.28604118]
[1736950183950,0.28527007,701.09,699.2,1.31558017]
[1736950184548,0.26231603,701.08,699.2,1.31558017]
[1736950185056,0.26231603,701.08,699.24,1.02953899]
[1736950185555,0.28527821,701.07,699.26,0.28601664]
[1736950185757,1.34612185,701.07,699.29,1.02953899]
[1736950186851,0.28527821,701.07,699.26,0.28601664]
[1736950187656,1.06084364,701.06,699.29,1.02953899]
[1736950188456,1.06084364,701.05,699.29,1.02953899]
[1736950189959,1.06084364,701.04,699.28,1.02953899]
[1736950190858,0.26235609,701.03,699.26,0.28601664]
[1736950191758,1.06084364,700.93,699.26,0.28601664]
[1736950192657,1.06084364,700.94,699.26,0.28601664]
[1736950192859,0.26238118,700.93,699.26,0.28601664]
[1736950193658,1.06084364,700.89,699.26,0.28601664]
[1736950193858,0.26238118,700.88,699.26,0.28601664]
[1736950194484,1.06084364,700.73,699.26,0.28601664]
[1736950195561,1.06084364,700.8,699.26,0.28601664]
[1736950196562,1.06084364,700.82,699.26,0.28601664]
[1736950197365,1.06084364,700.88,699.26,0.28601664]
[1736950197556,0.262412,700.87,699.26,0.28601664]
[1736950197759,1.06084364,700.88,699.26,0.28601664]
[1736950197962,0.26239307,700.87,699.26,0.28601664]
[1736950198363,0.26239675,700.86,699.26,0.28601664]
[1736950198669,0.26239675,700.85,699.26,0.28601664]
[1736950198861,0.26239675,700.84,699.26,0.28601664]
[1736950199056,0.26239675,700.83,699.26,0.28601664]
[1736950199365,0.54777673,700.82,699.26,0.28601664]
[1736950199658,0.28537998,700.82,699.26,0.28601664]
[1736950209466,0.26242021,700.81,699.26,0.28601664]
[1736950210592,1.06084364,700.8,699.26,0.28601664]
[1736950211475,0.52484277,700.79,699.26,0.28601664]
[1736950211669,0.26242256,700.78,699.26,0.28601664]
[1736950212074,0.28537998,700.82,699.26,0.28601664]
[1736950226386,0.28537998,700.82,699.27,1.02953899]
[1736950226882,0.28537998,700.82,699.28,0.28600846]
[1736950227680,0.28537998,700.82,699.28,1.31554745]
[1736950229582,0.28537998,700.82,699.29,1.6155461]
[1736950229781,0.28537998,700.82,699.29,2.64508509]
[1736950229986,0.28537998,700.82,699.3,1.61558458]
[1736950230194,0.28537998,700.82,699.29,1.02953899]
[1736950230388,0.28537998,700.82,699.3,1.61557644]
[1736950230686,0.28537998,700.82,699.3,1.02953899]
[1736950231586,0.28537998,700.82,699.28,0.28600846]
[1736950231983,0.28537998,700.82,699.29,1.61604313]
[1736950232189,0.26237047,700.81,699.29,1.61604313]
[1736950232483,0.28537998,700.82,699.3,2.71572438]
[1736950232687,0.26237557,700.81,699.31,1.02953899]
[1736950232989,0.28537998,700.82,699.31,1.02953899]
[1736950233387,0.26242695,700.81,699.31,1.02953899]
[1736950233584,0.28538812,700.8,699.31,1.02953899]
[1736950233789,0.26242442,700.79,699.31,1.02953899]
[1736950234084,0.26242442,700.79,699.28,0.28600846]
[1736950234792,1.06084364,700.71,699.28,0.28600846]
[1736950235885,1.34623176,700.8,699.28,0.28600846]
[1736950236085,0.26239771,700.79,699.28,0.28600846]
[1736950236487,1.34623176,700.8,699.28,0.28600846]
[1736950236792,1.32323905,700.79,699.28,0.28600846]
[1736950236986,0.26239541,700.78,699.28,0.28600846]
[1736950237888,1.06084364,700.79,699.28,0.28600846]
[1736950238691,0.28538812,700.8,699.28,0.28600846]
[1736950240793,0.28538812,700.8,699.29,1.61568781]
[1736950241191,0.28538812,700.8,699.3,2.71532181]
[1736950241596,0.28538812,700.8,699.36,1.02953899]
[1736950242495,0.28538812,700.8,699.28,0.28600846]
[1736950255208,0.26243008,700.79,699.28,0.28600846]
[1736950255409,0.28539627,700.78,699.28,0.28600846]
[1736950255707,0.26244469,700.77,699.28,0.28600846]
[1736950255905,0.28540441,700.76,699.28,0.28600846]
[1736950257410,0.26245914,700.75,699.28,0.28600846]
[1736950257611,0.28541256,700.74,699.28,0.28600846]
[1736950257911,0.26245914,700.73,699.28,0.28600846]
[1736950258408,0.28542071,700.72,699.28,0.28600846]
[1736950258611,0.26245914,700.71,699.28,0.28600846]
[1736950260311,0.28542071,700.72,699.28,0.28600846]
[1736950261613,0.26244864,700.71,699.28,0.28600846]
[1736950262813,1.06641007,700.68,699.28,0.28600846]
[1736950263607,0.28542071,700.72,699.28,0.28600846]
[1736950267615,0.26246193,700.71,699.28,0.28600846]
[1736950268116,0.28542071,700.72,699.28,0.28600846]
[1736950268309,0.26244344,700.71,699.28,0.28600846]
[1736950269619,0.28542071,700.72,699.28,0.28600846]
[1736950269918,0.26242236,700.71,699.28,0.28600846]
[1736950270311,0.28542071,700.72,699.28,0.28600846]
[1736950272218,0.26245953,700.71,699.28,0.28600846]
[1736950272418,0.28542071,700.72,699.28,0.28600846]
[1736950272613,0.26248195,700.71,699.28,0.28600846]
[1736950273619,0.28542885,700.7,699.28,0.28600846]
[1736950273918,1.06641007,700.67,699.28,0.28600846]
[1736950274819,0.28542885,700.7,699.28,0.28600846]
[1736950280123,0.26248903,700.69,699.28,0.28600846]
[1736950280421,0.28542885,700.7,699.28,0.28600846]
[1736950281217,0.26249232,700.69,699.28,0.28600846]
[1736950281421,0.285437,700.68,699.28,0.28600846]
[1736950284721,0.26247399,700.67,699.28,0.28600846]
[1736950284919,0.28544515,700.66,699.28,0.28600846]
[1736950285125,0.26247399,700.65,699.28,0.28600846]
[1736950285319,0.28544515,700.66,699.28,0.28600846]
[1736950285527,0.26247949,700.65,699.28,0.28600846]
[1736950285818,0.28544515,700.66,699.28,0.28600846]
[1736950286025,1.06641007,700.62,699.28,0.28600846]
[1736950287424,0.28546552,700.61,699.28,0.28600846]
[1736950290027,1.35187559,700.61,699.28,0.28600846]
[1736950291126,1.06641007,700.56,699.28,0.28600846]
[1736950292023,0.28546552,700.61,699.28,0.28600846]
[1736950305136,1.06641007,700.57,699.28,0.28600846]
[1736950305436,0.28548589,700.56,699.28,0.28600846]
[1736950306036,1.06641007,700.52,699.28,0.28600846]
[1736950306435,0.26251163,700.51,699.28,0.28600846]
[1736950306831,1.06641007,700.39,699.28,0.28600846]
[1736950307032,0.28555926,700.38,699.28,0.28600846]
[1736950308234,1.35196933,700.38,699.28,0.28600846]
[1736950309346,0.28555926,700.38,699.28,0.28600846]
[1736950315342,0.26253266,700.37,699.28,0.28600846]
[1736950316341,1.06641007,700.35,699.28,0.28600846]
[1736950317344,0.28555926,700.38,699.28,0.28600846]
[1736950319951,0.28555926,700.38,698.75,1.04156673]
[1736950320357,0.28555926,700.38,698.37,1.04156673]
[1736950320678,0.28555926,700.38,698.39,0.28637294]
[1736950321048,0.26261006,700.37,698.39,0.28637294]
[1736950321249,0.28557149,700.35,698.39,0.28637294]
[1736950321454,0.26261006,700.34,698.39,0.28637294]
[1736950321649,0.28557965,700.33,698.39,0.28637294]
[1736950321852,0.26261666,700.32,698.4,2.4820222]
[1736950322153,0.26261666,700.32,698.41,2.4820222]
[1736950322352,1.06641007,700.31,698.47,1.04156673]
[1736950322548,0.26261666,700.3,698.48,1.6244932]
[1736950322846,0.26261666,700.3,698.47,1.04156673]
[1736950323253,0.26261666,700.3,698.48,0.28633604]
[1736950323459,1.06641007,700.29,698.48,0.28633604]
[1736950323653,0.26267329,700.28,698.48,0.28633604]
[1736950324551,1.06641007,700.19,698.48,0.28633604]
[1736950324755,0.26276636,700.18,698.48,0.28633604]
[1736950325147,0.28564899,700.16,698.48,0.28633604]
[1736950325454,0.26276636,700.15,698.48,0.28633604]
[1736950326955,0.28564899,700.16,698.48,0.28633604]
[1736950327657,0.26271751,700.15,698.48,0.28633604]
[1736950327856,0.26271751,700.14,698.48,0.28633604]
[1736950328052,0.26271751,700.13,698.48,0.28633604]
[1736950328357,0.28564899,700.16,698.48,0.28633604]
[1736950328358,0.26271751,700.12,698.48,0.28633604]
[1736950328552,0.26271751,700.11,698.48,0.28633604]
[1736950328750,0.26271751,700.15,698.48,0.28633604]
[1736950328954,0.26271751,700.14,698.48,0.28633604]
[1736950329149,0.28564899,700.16,698.48,0.28633604]
[1736950329150,0.26271751,700.15,698.48,0.28633604]
[1736950329358,0.26271751,700.14,698.48,0.28633604]
[1736950329563,0.26271751,700.13,698.48,0.28633604]
[1736950329752,0.26271751,700.12,698.48,0.28633604]
[1736950329957,0.28564899,700.16,698.48,0.28633604]
[1736950330157,0.26272633,700.15,698.48,0.28633604]
[1736950332652,0.28564899,700.16,698.48,0.28633604]
[1736950332959,0.26273447,700.15,698.48,0.28633604]
[1736950334959,0.26273447,700.14,698.48,0.28633604]
[1736950335260,0.26273447,700.13,698.48,0.28633604]
[1736950335561,0.26274855,700.12,698.48,0.28633604]
[1736950335860,0.26274855,700.11,698.48,0.28633604]
[1736950336054,0.26274855,700.1,698.48,0.28633604]
[1736950336257,0.26276778,700.09,698.48,0.28633604]
[1736950336457,0.26276778,700.08,698.48,0.28633604]
[1736950336656,0.26276778,700.07,698.48,0.28633604]
[1736950336866,0.26276778,700.06,698.48,0.28633604]
[1736950337054,0.26276778,700.15,698.48,0.28633604]
[1736950337259,0.28566123,700.13,698.48,0.28633604]
[1736950337461,0.26276778,700.12,698.48,0.28633604]
[1736950337661,0.26276778,700.11,698.48,0.28633604]
[1736950337861,0.26276778,700.1,698.48,0.28633604]
[1736950338161,0.26276778,700.09,697.4,2.47342757]
[1736950338462,0.26282206,700.08,697.53,0.28672601]
[1736950338661,0.26282206,700.07,697.53,0.28672601]
[1736950338855,0.26282206,700.06,697.53,0.28672601]
[1736950339055,0.26282206,700.05,697.53,0.28672601]
[1736950339260,0.26282206,700.04,697.53,0.28672601]
[1736950339459,0.26282206,700.03,697.53,0.28672601]
[1736950339668,0.26282206,700.02,697.53,0.28672601]
[1736950339955,0.26282206,700.01,697.53,0.28672601]
[1736950340160,0.26282206,700.0,697.53,0.28672601]
[1736950340360,0.26282206,699.99,697.53,0.28672601]
[1736950340559,0.28566123,700.13,697.53,0.28672601]
[1736950340560,0.26282206,700.12,697.53,0.28672601]
[1736950340764,0.26282206,700.11,697.53,0.28672601]
[1736950340960,0.26282751,700.1,697.53,0.28672601]
[1736950341259,0.26282751,700.09,697.53,0.28672601]
[1736950341455,0.26282751,700.08,697.53,0.28672601]
[1736950341660,0.26282751,700.07,697.53,0.28672601]
[1736950341863,0.26282751,700.06,697.53,0.28672601]
[1736950342165,0.26282751,700.05,697.53,0.28672601]
[1736950342361,0.26282751,700.04,697.53,0.28672601]
[1736950342661,0.26282751,700.03,697.53,0.28672601]
[1736950342961,0.26282751,700.02,697.53,0.28672601]
[1736950343162,0.26282751,700.01,697.53,0.28672601]
[1736950343461,0.26282751,700.0,697.53,0.28672601]
[1736950343665,1.3520713,700.13,697.53,0.28672601]
[1736950343666,0.26282331,699.99,697.53,0.28672601]
[1736950343962,0.26282331,699.98,697.53,0.28672601]
[1736950344165,0.28566123,700.13,697.53,0.28672601]
[1736950344166,0.26282331,699.97,697.53,0.28672601]
[1736950344361,0.28566123,700.13,697.53,0.28672601]
[1736950344562,0.26283051,700.12,697.53,0.28672601]
[1736950344964,0.26283051,700.11,697.53,0.28672601]
[1736950345165,0.26283051,700.1,697.53,0.28672601]
[1736950345365,0.26283051,700.09,697.53,0.28672601]
[1736950345572,0.26283051,700.08,697.53,0.28672601]
[1736950345761,0.26283051,700.07,697.53,0.28672601]
[1736950346063,0.26283051,700.06,697.53,0.28672601]
[1736950346264,0.26283051,700.05,697.53,0.28672601]
[1736950346462,0.26283051,700.04,697.53,0.28672601]
[1736950346764,0.26283051,700.03,697.53,0.28672601]
[1736950346965,0.26283051,700.02,697.53,0.28672601]
[1736950347266,0.26282273,700.01,697.53,0.28672601]
[1736950347465,0.26282273,700.0,697.53,0.28672601]
[1736950347663,0.26282273,699.99,697.53,0.28672601]
[1736950347859,0.26282273,699.98,697.53,0.28672601]
[1736950348059,0.26282273,699.97,697.53,0.28672601]
[1736950348261,0.26282273,699.96,697.53,0.28672601]
[1736950348462,0.28573877,699.94,697.53,0.28672601]
[1736950348672,0.26282273,699.93,697.53,0.28672601]
[1736950348967,0.26282273,699.92,697.53,0.28672601]
[1736950349169,0.26282273,699.91,697.53,0.28672601]
[1736950349371,0.26282273,699.9,697.53,0.28672601]
[1736950349565,0.26282976,699.89,697.53,0.28672601]
[1736950349762,0.26282976,699.88,697.53,0.28672601]
[1736950349960,0.26282976,699.87,697.53,0.28672601]
[1736950350168,0.26282976,699.86,697.53,0.28672601]
[1736950350371,0.26282976,699.85,697.53,0.28672601]
[1736950350571,0.26282976,699.84,697.53,0.28672601]
[1736950350971,0.26282976,699.83,697.53,0.28672601]
[1736950351269,0.26282976,699.82,697.53,0.28672601]
[1736950351568,0.26282976,699.81,697.53,0.28672601]
[1736950351786,0.26282976,699.8,697.53,0.28672601]
[1736950352065,0.52564506,699.79,697.53,0.28672601]
[1736950352269,0.26282253,699.78,697.53,0.28672601]
[1736950352670,0.26282061,699.77,697.53,0.28672601]
[1736950352863,0.26282061,699.76,697.53,0.28672601]
[1736950353063,0.26282061,699.75,697.53,0.28672601]
[1736950353371,0.26282061,699.74,697.53,0.28672601]
[1736950353570,0.26282253,699.79,697.53,0.28672601]
[1736950353768,0.26282661,699.78,697.53,0.28672601]
[1736950355978,0.26282792,699.75,697.53,0.28672601]
[1736950356476,0.28582453,699.73,697.53,0.28672601]
[1736950356770,0.26282792,699.72,697.53,0.28672601]
[1736950357477,0.26282692,699.71,697.53,0.28672601]
[1736950357678,0.26282692,699.7,697.53,0.28672601]
[1736950357878,0.26282692,699.69,697.53,0.28672601]
[1736950358078,1.06641007,699.59,697.58,1.04156673]
[1736950359278,1.06641007,699.64,697.66,1.04156673]
[1736950361777,1.06641007,699.66,697.62,1.04156673]
[1736950362380,0.26280885,699.65,697.62,1.04156673]
[1736950362776,1.32921892,699.65,697.72,0.28664793]
[1736950362974,0.26281054,699.64,697.72,0.28664793]
[1736950363975,1.06641007,699.6,697.76,1.04156673]
[1736950364881,1.06641007,699.62,697.72,0.28664793]
[1736950365078,0.26282377,699.61,697.72,0.28664793]
[1736950365677,0.26282575,699.6,697.72,0.28664793]
[1736950365881,0.28582453,699.73,697.72,0.28664793]
[1736950365882,1.06641007,699.59,697.77,1.04156673]
[1736950366879,1.06641007,699.66,697.77,1.04156673]
[1736950367079,0.26286892,699.65,697.72,0.28664793]
[1736950367678,1.06641007,699.66,697.72,0.28664793]
[1736950367886,1.06641007,699.56,697.72,0.28664793]
[1736950369083,1.06641007,699.53,697.72,0.28664793]
[1736950369285,0.26286936,699.52,697.72,0.28664793]
[1736950369985,1.06641007,699.42,697.75,1.04156673]
[1736950370283,1.06641007,699.42,697.77,0.28662739]
[1736950371085,1.06641007,699.46,697.77,0.28662739]
[1736950371677,0.28582453,699.73,697.77,0.28662739]
[1736950372078,0.26287584,699.72,697.77,0.28662739]
[1736950372785,1.07027693,699.48,697.77,0.28662739]
[1736950373581,1.07027693,699.54,697.77,0.28662739]
[1736950374682,1.07027693,699.46,697.77,0.28662739]
[1736950375786,1.07027693,699.47,697.77,0.28662739]
[1736950376687,1.07027693,699.43,697.77,0.28662739]
[1736950377484,1.07027693,699.47,697.77,0.28662739]
[1736950377885,0.26294468,699.46,697.77,0.28662739]
[1736950378086,1.07027693,699.47,697.77,0.28662739]
[1736950378488,1.07027693,699.43,697.77,0.28662739]
[1736950378685,0.26296698,699.42,697.77,0.28662739]
[1736950378886,1.07027693,699.43,697.77,0.28662739]
[1736950379382,1.07027693,699.6,697.77,0.28662739]
[1736950379788,0.26296904,699.59,697.77,0.28662739]
[1736950380386,1.07027693,699.58,697.77,0.28662739]
[1736950380583,0.26296904,699.57,697.77,0.28662739]
[1736950380990,1.07027693,699.58,697.77,0.28662739]
[1736950381186,1.07027693,699.54,697.77,0.28662739]
[1736950382391,0.28582453,699.73,697.77,0.28662739]
[1736950382584,0.26297647,699.72,697.77,0.28662739]
[1736950383391,1.07027693,699.54,697.77,0.28662739]
[1736950384387,1.07027693,699.68,697.77,0.28662739]
[1736950384594,0.26296179,699.67,697.77,0.28662739]
[1736950386094,0.28585721,699.65,697.77,0.28662739]
[1736950386299,0.26296179,699.64,697.77,0.28662739]
[1736950389594,0.26300853,699.63,697.77,0.28662739]
[1736950389894,1.07027693,699.46,697.77,0.28662739]
[1736950390095,0.26300853,699.45,697.77,0.28662739]
[1736950391602,0.26300853,699.44,697.77,0.28662739]
[1736950391798,0.26300853,699.46,697.77,0.28662739]
[1736950392004,0.26300853,699.45,697.77,0.28662739]
[1736950392199,0.26300853,699.44,697.77,0.28662739]
[1736950392403,1.07027693,699.49,697.77,0.28662739]
[1736950392604,0.26300698,699.48,697.77,0.28662739]
[1736950393006,1.07027693,699.47,697.77,0.28662739]
[1736950393308,0.26301049,699.46,697.77,0.28662739]
[1736950393907,1.07027693,699.45,697.77,0.28662739]
[1736950394107,0.26301049,699.44,697.77,0.28662739]
[1736950395305,0.26301279,699.43,697.77,0.28662739]
[1736950395506,1.07027693,699.63,697.77,0.28662739]
[1736950395703,0.26300638,699.62,697.77,0.28662739]
[1736950396108,0.28587764,699.6,697.77,0.28662739]
[1736950396302,0.26300638,699.59,697.77,0.28662739]
[1736950398212,1.07027693,699.49,697.77,0.28662739]
[1736950398403,0.26300638,699.48,697.77,0.28662739]
[1736950399008,1.07027693,699.44,697.77,0.28662739]
[1736950399202,0.26300638,699.43,697.77,0.28662739]
[1736950399809,1.07027693,699.42,697.77,0.28662739]
[1736950400008,0.26300638,699.41,697.77,0.28662739]
[1736950400906,1.07027693,699.34,697.77,0.28662739]
[1736950401106,0.26300638,699.33,697.77,0.28662739]
[1736950401410,0.26300638,699.33,696.87,1.05268713]